[Event "10th Cesme Open-A 2024"]
[Site "Cesme"]
[Date "2024.06.29"]
[Round "8"]
[White "Kharitonov, Alexandr"]
[Black "Grover, Sahaj"]
[Result "1-0"]
[ECO "A58"]
[WhiteElo "2522"]
[BlackElo "2510"]
[Annotator "TA"]
[PlyCount "87"]
[EventDate "2024.06.23"]
[EventType "swiss"]
[EventCountry "TUR"]
[SourceTitle "playchess.com"]
[Source "ChessBase"]
[SourceQuality "1"]
[TimeControl "5400+30"]

{[%evp 9,87,36,50,50,43,56,60,37,15,25,33,11,31,21,35,27,116,116,145,129,125,58,198,180,198,211,223,216,227,68,59,82,63,41,38,29,33,48,112,114,115,52,125,127,197,123,123,125,184,179,212,211,232,142,138,112,95,100,133,98,121,119,127,103,109,95,93,69,83,83,366,352,842,828,1028,1007,781,743,709,673]} 1. d4 {[%emt 0:01:00]} Nf6 {[%emt 0:01:00]} 2. c4 {[%emt 0:00:30]} c5 {[%emt 0:00:00]} 3. d5 {[%emt 0:00:30]} b5 {[%emt 0:00:00]} 4. cxb5 {[%emt 0:00:30]} a6 {[%emt 0:00:00]} 5. bxa6 {[%emt 0:03:30]} g6 {[%emt 0:00:00][%cal Of8g7]} 6. Nc3 {[%emt 0:01:30]} Bg7 {[%emt 0:00:00][%cal Oe8g8]} 7. e4 {[%emt 0:00:30]} O-O {[%emt 0:00:00][%cal Oe7e6]} 8. e5 {[%emt 0:00:30] White is slightly better.} Ne8 {[%emt 0:00:30]} 9. Nf3 {[%emt 0:00:00][%cal Bg1f3,Bf3d2,Bd2c4,Bc4a5,Ba5c6][%mdl 32]} d6 {[%emt 0:04:30]} 10. exd6 {[%emt 0:01:00]} exd6 {[%emt 0:09:30][%cal Oe8c7]} 11. Be2 {[%emt 0:00:30]} Nxa6 {[%emt 0:00:30]} 12. O-O {[%emt 0:00:30]} Qb6 {[%emt 0:02:30]} (12... Nf6 $11 {remains equal.}) 13. Nd2 $1 $16 {[%emt 0:01:30]} f5 {[%emt 0:15:30]} 14. Nc4 {[%emt 0:01:30]} Qd8 {[%emt 0:00:00]} 15. Nb5 {[%emt 0:07:30]} ({White should play} 15. Bf4 $16) 15... Rb8 {[%emt 0:05:00]} ({Better is} 15... Nac7 $14 16. Nxc7 Nxc7) 16. a4 $18 {[%emt 0:03:30]} Nac7 {[%emt 0:07:30]} 17. Na5 {[%emt 0:22:30] aiming for Nc6.} Ra8 {[%emt 0:02:30]} 18. Nc6 {[%emt 0:00:30]} Qf6 {[%emt 0:01:30]} 19. f4 $2 {[%emt 0:01:30]} (19. Ra3 $18) 19... Nxb5 $14 {[%emt 0:05:30]} 20. Bxb5 {[%emt 0:00:30]} Nc7 {[%emt 0:00:00] Hoping for ...Nxb5.} 21. Ra3 {[%emt 0:01:30]} Re8 {[%emt 0:12:00]} 22. Re1 {[%emt 0:01:30]} Rxe1+ {[%emt 0:10:30]} 23. Qxe1 {[%emt 0:00:30] Re3 would now be deadly.} Bb7 {[%emt 0:00:00]} (23... Kf8 $14) 24. Re3 $1 $16 {[%emt 0:07:30]} Kf8 {[%emt 0:03:00][%cal Oa8c8]} 25. Qd1 {[%emt 0:03:30] White is more active.} (25. Qe2 $16) 25... Re8 {[%emt 0:00:30]} (25... Bxc6 $1 $14 26. Bxc6 Qd4) 26. Rxe8+ {[%emt 0:00:30]} Nxe8 {[%emt 0:04:35]} (26... Kxe8 $16 27. h3 Kf8) 27. Kf1 {[%emt 0:06:30]} (27. Qb3 $1 $18) 27... Nc7 {[%emt 0:02:21]} 28. Bc4 {[%emt 0:00:30] Black must now prevent Qb3.} Bxc6 {[%emt 0:06:52]} (28... Qh4 $16) 29. dxc6 $18 {[%emt 0:00:30]} Qe7 {[%emt 0:00:01]} 30. Qd3 {[%emt 0:08:30]} Bd4 {[%emt 0:00:33] [#]} 31. b4 $1 {[%emt 0:01:30][%mdl 512] b5 is the strong threat.} d5 {[%emt 0:02:06]} 32. bxc5 {[%emt 0:00:30]} Bxc5 {[%emt 0:00:30] [#]} 33. Bb5 {[%emt 0:07:02]} (33. Bxd5 Bb4 34. Bd2 Bxd2 35. Qxd2 Qd6 $19) 33... Qe4 {[%emt 0:04:07]} 34. Qc3 {[%emt 0:02:04]} Bd4 {[%emt 0:00:04]} 35. Qa3+ {[%emt 0:03:00]} Kg8 {[%emt 0:01:24]} 36. Bd3 {[%emt 0:01:32]} Qe6 {[%emt 0:01:06]} 37. Qb4 {[%emt 0:00:07]} Qxc6 {[%emt 0:00:21]} 38. Ba3 $36 {[%emt 0:00:39][%mdl 2048] White has the initiative.} Ne6 {[%emt 0:01:31][%cal Og8g7] Inhibits Qf8+.} 39. a5 {[%emt 0:00:26]} Bc5 $2 {[%emt 0:01:03][%mdl 8192]} (39... Ba7 $16 40. h3 Qc7) 40. Qb8+ {[%emt 0:00:14]} Kf7 $2 {[%emt 0:00:45]} (40... Bf8) 41. Bb5 {[%emt 0:00:24] White is clearly winning.} Qc7 {[%emt 0:00:54] [#]} 42. Qxc7+ $1 {[%emt 0:03:01]} Nxc7 {[%emt 0:00:30]} 43. Bxc5 {[%emt 0:00:30]} Nxb5 {[%emt 0:00:30]} 44. Bb6 {[%emt 0:00:22] Weighted Error Value: White=0.18 (very precise) /Black=0.35.  Loses game:     	---       	Black=1      Mistake:       	White=4     	Black=7      Inaccurate:     	---       	Black=1      OK:         	White=10    	Black=11     Best:        	White=4     	Black=2      Strong:       	White=2     	---        Brilliant:      	White=1     	---} (44. a6 Nc7 45. a7 Ke6 $18) 1-0

[Event "10th Cesme Open-A 2024"]
[Site "Cesme"]
[Date "2024.06.29"]
[Round "8"]
[White "Gholami, Aryan"]
[Black "Bolat, Inayat"]
[Result "1/2-1/2"]
[ECO "E60"]
[WhiteElo "2481"]
[BlackElo "2232"]
[Annotator "TA"]
[PlyCount "106"]
[EventDate "2024.06.23"]
[EventType "swiss"]
[EventCountry "TUR"]
[SourceTitle "playchess.com"]
[Source "ChessBase"]
[SourceQuality "1"]
[TimeControl "5400+30"]

{[%evp 13,106,29,24,31,29,0,0,0,8,-8,-10,-12,18,0,17,0,3,-22,-18,-31,-19,-14,-4,-33,-35,-40,-28,-32,0,0,0,0,8,4,5,0,8,23,7,-25,4,11,7,0,0,0,0,0,0,0,0,0,0,0,0,0,0,0,0,0,0,0,0,0,0,0,0,0,0,0,0,0,0,-13,0,0,0,0,0,-8,0,0,0,0,0,0,0,0,0,0,0,0,0,0,0]} 1. Nf3 {[%emt 0:01:00]} Nf6 {[%emt 0:01:00]} 2. g3 {[%emt 0:00:30]} g6 {[%emt 0:00:30]} 3. b3 {[%emt 0:00:30]} Bg7 {[%emt 0:00:30]} 4. Bb2 {[%emt 0:00:30]} O-O {[%emt 0:00:30]} 5. Bg2 {[%emt 0:00:00]} c5 {[%emt 0:00:00]} 6. c4 {[%emt 0:00:00]} d6 {[%emt 0:00:00]} 7. d4 {[%emt 0:00:00]} Qa5+ {[%emt 0:00:30]} 8. Bc3 {[%emt 0:00:00]} Qc7 {[%emt 0:00:00]} 9. Nbd2 {[%emt 0:00:30] Against Ne4} Re8 {[%emt 0:00:00]} 10. O-O {[%emt 0:01:30]} e5 {[%emt 0:00:30]} 11. dxe5 {[%emt 0:06:30]} dxe5 {[%emt 0:00:30]} 12. Ng5 {[%emt 0:00:00]} Nc6 {[%emt 0:06:30]} 13. Nge4 {[%emt 0:09:00]} Nxe4 {[%emt 0:01:30]} 14. Nxe4 {[%emt 0:00:30]} Rd8 {[%emt 0:01:30] Repels Qd6} 15. Qc1 {[%emt 0:08:30]} Nd4 {[%emt 0:18:30]} 16. Re1 {[%emt 0:02:30]} f5 {[%emt 0:05:30]} 17. Nd2 {[%emt 0:00:30]} e4 {[%emt 0:01:30]} 18. Qb2 {[%emt 0:00:30]} b6 {[%emt 0:08:30]} 19. Rad1 {[%emt 0:04:30]} Bb7 {[%emt 0:00:30]} 20. Nb1 {[%emt 0:00:30]} f4 {[%emt 0:17:30] [#] Threatens to win with ...e3.} 21. e3 {[%emt 0:06:30]} fxe3 {[%emt 0:03:30]} 22. fxe3 {[%emt 0:00:30]} Nf5 {[%emt 0:09:30][%cal Bd4f5,Bf5g7,Bg7e6][%mdl 32] Hoping for ...Rxd1.} (22... Nf3+ 23. Bxf3 exf3 24. Bxg7 Qxg7 25. Qxg7+ Kxg7 26. Nc3) 23. Bxg7 {[%emt 0:01:30]} Nxg7 {[%emt 0:03:30]} (23... Qxg7 {simplifies} 24. Qxg7+ Kxg7 25. Nc3 Rxd1 26. Rxd1 Rf8) 24. Bh3 {[%emt 0:05:30]} Rd3 {[%emt 0:02:40]} 25. Rxd3 {[%emt 0:02:30]} exd3 {[%emt 0:00:02]} 26. Nd2 {[%emt 0:00:30]} Qc6 {[%emt 0:02:43]} (26... Nf5 {feels hotter.} 27. Qf6 Rf8 28. Qg5 Qd8) 27. e4 {[%emt 0:00:30] The position is equal.} Ne6 $132 {[%emt 0:02:26][%mdl 2048] Black is fighting back} 28. Qc3 {[%emt 0:00:30]} Ng5 {[%emt 0:00:30]} 29. Bg2 {[%emt 0:00:30]} Rd8 {[%emt 0:00:30]} 30. Re3 {[%emt 0:05:30]} Qd6 {[%emt 0:05:28]} 31. h4 {[%emt 0:02:30]} Nxe4 {[%emt 0:05:42]} 32. Bxe4 {[%emt 0:09:30]} Bxe4 {[%emt 0:00:30]} 33. Nxe4 {[%emt 0:00:00]} d2 $1 {[%emt 0:00:00]} 34. Nxd2 {[%emt 0:01:00]} Qxd2 $11 {[%emt 0:00:00][%mdl 4096] Endgame. KQR-KQR} 35. Qe5 {[%emt 0:01:30]} Qd7 {[%emt 0:01:53]} 36. Qe4 {[%emt 0:00:30]} Qd1+ {[%emt 0:00:30]} 37. Re1 {[%emt 0:00:30]} Qd4+ {[%emt 0:00:30]} 38. Qxd4 {[%emt 0:00:30]} Rxd4 {[%emt 0:00:30] KR-KR} 39. Re2 {[%emt 0:00:30]} Kf7 {[%emt 0:00:30]} 40. Kf2 {[%emt 0:00:30]} Rd3 {[%emt 0:00:30]} 41. Kg2 {[%emt 0:00:30]} h5 {[%emt 0:00:30]} 42. Kf2 {[%emt 0:00:30]} Kf6 {[%emt 0:00:00]} 43. Kg2 {[%emt 0:03:30]} Kf7 {[%emt 0:01:54]} 44. Kh3 {[%emt 0:00:30]} Kf6 {[%emt 0:00:00]} 45. Rf2+ {[%emt 0:00:30]} Ke6 {[%emt 0:00:06]} 46. Rb2 {[%emt 0:01:30]} Rc3 {[%emt 0:00:28]} 47. Rd2 {[%emt 0:00:30]} Ke7 {[%emt 0:00:25]} 48. Re2+ {[%emt 0:00:30]} Kf6 {[%emt 0:00:12]} 49. Rf2+ {[%emt 0:00:30]} Ke7 {[%emt 0:00:30]} 50. Rd2 {[%emt 0:00:30]} Re3 {[%emt 0:00:30]} 51. Kg2 {[%emt 0:00:30]} Rc3 {[%emt 0:00:17]} 52. Kh3 {[%emt 0:00:30]} Re3 {[%emt 0:00:30]} 53. Kg2 {[%emt 0:00:30]} Rc3 {[%emt 0:00:00] Weighted Error Value: White=0.04 (flawless) /Black=0.04 (flawless) .  Inaccurate:     	White=2     	Black=3      OK:         	White=19    	Black=18     Best:        	White=1     	Black=1      Strong:       	---       	Black=1} 1/2-1/2

[Event "10th Cesme Open-A 2024"]
[Site "Cesme"]
[Date "2024.06.29"]
[Round "8"]
[White "Durak, Can"]
[Black "Zeynalli, Rashad"]
[Result "1-0"]
[ECO "D35"]
[WhiteElo "2442"]
[BlackElo "2127"]
[Annotator "TA"]
[PlyCount "107"]
[EventDate "2024.06.23"]
[EventType "swiss"]
[EventCountry "TUR"]
[SourceTitle "playchess.com"]
[Source "ChessBase"]
[SourceQuality "1"]
[TimeControl "5400+30"]

{[%evp 11,107,38,48,39,37,37,39,42,30,32,35,42,47,46,56,38,45,36,52,37,80,63,93,45,49,58,43,44,47,41,50,52,29,37,62,61,58,59,89,87,87,68,150,160,168,154,189,178,284,252,247,218,214,200,211,182,178,145,142,103,96,53,54,46,57,0,0,0,0,0,18,21,12,12,12,0,11,5,7,0,8,4,4,6,7,0,0,0,282,295,275,274,29978,29979,29979,29980,29982,29982]} 1. d4 {[%emt 0:01:00]} d5 {[%emt 0:01:00]} 2. c4 {[%emt 0:00:30]} Nc6 {[%emt 0:00:00]} 3. Nc3 {[%emt 0:00:30]} Nf6 {[%emt 0:00:00]} 4. Nf3 {[%emt 0:02:30]} e6 {[%emt 0:00:30]} 5. cxd5 {[%emt 0:00:30]} exd5 {[%emt 0:00:30]} 6. Bg5 {[%emt 0:00:00]} Be7 {[%emt 0:00:30]} 7. e3 {[%emt 0:00:00]} h6 {[%emt 0:01:30]} 8. Bxf6 {[%emt 0:00:30]} Bxf6 {[%emt 0:00:30]} 9. Bb5 {[%emt 0:00:00] White is slightly better.} O-O {[%emt 0:01:30]} 10. Bxc6 {[%emt 0:01:00]} bxc6 {[%emt 0:00:30]} 11. O-O {[%emt 0:00:00]} Rb8 {[%emt 0:01:30]} 12. Na4 {[%emt 0:01:00]} c5 {[%emt 0:03:30]} 13. Nxc5 {[%emt 0:01:30]} (13. dxc5 Bg4 $11) 13... Rxb2 {[%emt 0:00:30]} 14. Qa4 {[%emt 0:00:30]} Bg4 {[%emt 0:01:30]} 15. Nd3 {[%emt 0:01:30] Excellent horsemanship.} (15. Qxa7 Bxf3 16. gxf3 Bh4 $17) 15... Rb7 {[%emt 0:07:30]} 16. Nfe5 {[%emt 0:01:30]} Be2 {[%emt 0:07:30]} 17. Rfe1 {[%emt 0:00:00]} (17. Rfb1 $16 Qc8 18. Rb3) 17... Bxe5 $14 {[%emt 0:00:30]} 18. Nxe5 {[%emt 0:02:00]} Bb5 {[%emt 0:03:30]} 19. Qc2 {[%emt 0:00:00]} f6 {[%emt 0:01:30]} 20. Nf3 {[%emt 0:04:00]} Qd6 {[%emt 0:01:30]} 21. Reb1 {[%emt 0:06:30]} Rfb8 {[%emt 0:01:30]} 22. Nd2 {[%emt 0:00:30]} Bd7 {[%emt 0:02:30]} 23. Rxb7 {[%emt 0:02:30]} Rxb7 {[%emt 0:00:30]} 24. Nb3 {[%emt 0:00:00]} Bb5 {[%emt 0:05:30]} 25. Nc5 {[%emt 0:00:00]} Rb6 {[%emt 0:03:30]} 26. Qf5 {[%emt 0:00:30]} Bc4 {[%emt 0:04:30]} ({Better is} 26... Qd8 $1 $14) 27. Qc8+ $16 {[%emt 0:00:30]} Kf7 {[%emt 0:01:30][%cal Oc4a2]} 28. a4 {[%emt 0:01:30]} c6 {[%emt 0:03:30]} 29. h4 {[%emt 0:01:30]} Be2 {[%emt 0:07:30]} (29... Rb2 $142 30. Nb7 Qf8 31. Qd7+ (31. Qxc6 Rb6 $16) 31... Kg8) 30. Nb7 $18 {[%emt 0:03:30]} Qf8 {[%emt 0:12:30]} 31. Qd7+ {[%emt 0:03:30]} Kg8 {[%emt 0:00:30]} 32. Nc5 {[%emt 0:03:30]} Qf7 {[%emt 0:01:30] Wards off Ne6} 33. Qc8+ {[%emt 0:01:30]} Kh7 {[%emt 0:04:30]} 34. Re1 {[%emt 0:02:30]} Qh5 {[%emt 0:02:30][%cal Oe2g4]} 35. Nd7 {[%emt 0:03:30] White has more active pieces.} Bg4 {[%emt 0:03:24]} 36. Nf8+ {[%emt 0:00:30]} Kg8 {[%emt 0:00:08]} 37. Qd8 {[%emt 0:00:00] [#] Hoping for Nd7+.} Rb2 {[%emt 0:01:15][%cal Oh5f5]} 38. Ne6+ {[%emt 0:02:00]} ({White should try} 38. Rc1 $14) 38... Kh7 $11 {[%emt 0:00:30]} 39. Qe7 {[%emt 0:00:30][%csl Ge6][%cal Re7g7]} Bxe6 {[%emt 0:00:30]} 40. Qxe6 {[%emt 0:07:30][%mdl 4096] Endgame. KQR-KQR} Ra2 {[%emt 0:06:22]} 41. Qxc6 {[%emt 0:00:30] Threatens to win with Qd7.} Qxh4 {[%emt 0:00:30]} 42. Rf1 {[%emt 0:00:30]} Qe4 {[%emt 0:05:56]} 43. Qd7 {[%emt 0:01:30]} Qc2 {[%emt 0:01:34]} 44. Qxd5 {[%emt 0:00:30]} Rxa4 {[%emt 0:00:00]} 45. Qe6 {[%emt 0:02:30]} Qd3 {[%emt 0:01:07]} 46. Rc1 $36 {[%emt 0:00:00][%mdl 2048] White has good play.} Ra5 {[%emt 0:00:42]} 47. g3 {[%emt 0:03:00]} Rh5 {[%emt 0:00:42]} 48. Kg2 {[%emt 0:01:30]} a5 {[%emt 0:00:30][%cal Ba7a5,Ba5a4][%mdl 32]} 49. Rc5 {[%emt 0:00:30]} Qd1 {[%emt 0:00:30][%mdl 8192]} (49... Rxc5 $11 {and Black has nothing to worry.} 50. dxc5 a4) 50. Rxh5 $18 {[%emt 0:00:30]} ({Avoid the trap} 50. Qe4+ $2 f5 $19) 50... Qxh5 {[%emt 0:00:30]} 51. d5 {[%emt 0:00:30][%cal Bd4d5,Bd5d6,Bd6d7][%mdl 32] [#] White wants to mate with d6.} Qd1 $2 {[%emt 0:00:30]} (51... a4 $18 52. Qe4+ Kg8) 52. d6 {[%emt 0:00:30] White mates.} a4 {[%emt 0:00:30]} 53. d7 {[%emt 0:00:30]} Qd3 {[%emt 0:00:30]} 54. Qe7 {[%emt 0:00:30] Weighted Error Value: White=0.10 (very precise) /Black=0.33.  Loses game:     	---       	Black=1      Mistake:       	White=2     	Black=3      Inaccurate:     	White=1     	Black=3      OK:         	White=14    	Black=12     Best:        	White=4     	Black=11} 1-0

[Event "10th Cesme Open-A 2024"]
[Site "Cesme"]
[Date "2024.06.29"]
[Round "8"]
[White "Yermolinsky, Alex"]
[Black "Fromm, Marius"]
[Result "1/2-1/2"]
[ECO "E56"]
[WhiteElo "2421"]
[BlackElo "2465"]
[Annotator "TA"]
[PlyCount "160"]
[EventDate "2024.06.23"]
[EventType "swiss"]
[EventCountry "TUR"]
[SourceTitle "playchess.com"]
[Source "ChessBase"]
[SourceQuality "1"]
[TimeControl "5400+30"]

{[%evp 20,160,0,0,14,0,16,12,46,0,0,0,0,0,0,0,0,-39,-31,-120,0,0,0,0,0,0,0,0,0,0,0,0,0,0,0,-21,-26,-37,-8,-8,-8,-23,-20,-20,-20,-35,-16,-78,-8,-8,-8,-8,-8,-8,-8,-8,-8,-8,-8,-8,-8,-8,-8,-8,-8,-8,-8,-8,-8,-85,-58,-58,-8,-8,-8,-8,-8,-8,-8,-8,-8,-8,-8,-8,-8,-8,-8,-8,-8,-8,-8,-8,-8,-8,0,-8,-8,-8,0,-8,-8,-8,-8,-8,-8,-8,-8,-8,-8,-8,-8,-8,-8,-8,-8,-8,0,-8,0,-8,-8,-8,-8,-8,-8,-8,0,-8,-8,-8,-8,-8,-8,-8,-8,-8,-8,-8,-8,-8,-8,-8,-8]} 1. d4 {[%emt 0:01:00]} Nf6 {[%emt 0:01:00]} 2. c4 {[%emt 0:00:30]} e6 {[%emt 0:00:30]} 3. Nc3 {[%emt 0:00:30]} Bb4 {[%emt 0:00:30]} 4. e3 {[%emt 0:00:30]} O-O {[%emt 0:00:30]} 5. Bd3 {[%emt 0:00:30]} d5 {[%emt 0:00:00]} 6. Nf3 {[%emt 0:00:00]} dxc4 {[%emt 0:01:00]} 7. Bxc4 {[%emt 0:00:00]} c5 {[%emt 0:00:30]} 8. O-O {[%emt 0:00:00]} Nc6 {[%emt 0:00:00]} 9. a3 {[%emt 0:01:00]} Ba5 {[%emt 0:00:00]} 10. dxc5 {[%emt 0:04:30]} Bxc3 {[%emt 0:00:30]} 11. bxc3 {[%emt 0:00:30]} Qa5 {[%emt 0:01:30]} 12. Qe2 {[%emt 0:00:30]} Rd8 {[%emt 0:04:30]} 13. e4 {[%emt 0:09:30] next Bg5 is good for White.} Qxc5 {[%emt 0:01:30]} 14. Bg5 {[%emt 0:00:30]} (14. e5 $14 {was preferrable.} Nd5 15. Bd3) 14... h6 $11 {[%emt 0:01:30]} 15. Bh4 {[%emt 0:09:30] e5 is the strong threat.} g5 {[%emt 0:02:30]} 16. Bg3 {[%emt 0:00:30]} Nh5 {[%emt 0:00:30]} 17. Rad1 {[%emt 0:04:30]} Nxg3 {[%emt 0:00:30]} 18. hxg3 {[%emt 0:01:30]} Bd7 {[%emt 0:00:30][%cal Oc6a5]} 19. Nd4 {[%emt 0:04:30]} (19. e5 $15) 19... Be8 {[%emt 0:07:30]} (19... Qxa3 $6 20. Qh5 $11) ({Black should play} 19... Ne5 $17 20. Bb5 a6 (20... Qxa3 21. Bxd7 Nxd7 22. Nb5 $11) 21. Bxd7 Nxd7 (21... Rxd7 22. f4 $11)) 20. Bxe6 {[%emt 0:02:30]} fxe6 {[%emt 0:04:30]} 21. Nxe6 {[%emt 0:00:00]} Qxc3 {[%emt 0:00:30]} 22. Nxd8 {[%emt 0:00:00]} Rxd8 {[%emt 0:00:30]} 23. Rxd8 {[%emt 0:00:30]} Nxd8 {[%emt 0:00:00]} 24. Rd1 {[%emt 0:01:30]} Ne6 {[%emt 0:07:00]} 25. e5 {[%emt 0:09:30]} Bc6 {[%emt 0:05:30][%cal Og8f8] Inhibits Qe4.} 26. Rd6 {[%emt 0:04:30]} Kf7 {[%emt 0:01:30][%cal Of7e7]} 27. Kh2 {[%emt 0:00:00][%cal Of2f4] [#] And now f4! would win. Chess con chili.} Ke7 {[%emt 0:00:30][%cal Oa7a5]} (27... Qxa3 $2 28. Qh5+ (28. Qc4 Qxd6 29. exd6 Kf6 $18) 28... Ke7 29. Qxh6 $18) 28. Rd3 {[%emt 0:11:00]} Bb5 {[%emt 0:03:30]} 29. Rxc3 {[%emt 0:00:30]} Bxe2 {[%emt 0:00:00]} 30. Rc8 {[%emt 0:00:30]} Kd7 {[%emt 0:02:00]} 31. Rh8 {[%emt 0:00:00]} a5 {[%emt 0:04:30]} 32. Rxh6 {[%emt 0:09:00]} b5 {[%emt 0:00:30] [#] Strongly threatening ...b4.} 33. Rh8 {[%emt 0:00:00]} (33. f4 $11 gxf4 34. gxf4 Nxf4 35. Rd6+ Ke7 36. Kg3) 33... Kc6 {[%emt 0:02:30]} (33... a4 $17) 34. f4 $1 {[%emt 0:05:00]} gxf4 {[%emt 0:00:00]} 35. gxf4 {[%emt 0:00:30]} Nxf4 {[%emt 0:00:00]} 36. Kg3 {[%emt 0:00:30]} Ne6 {[%emt 0:00:30]} 37. Kf2 {[%emt 0:00:30]} Bc4 {[%emt 0:00:30]} 38. Ke3 {[%emt 0:00:30]} Kd5 {[%emt 0:00:30]} 39. Kd2 {[%emt 0:01:30]} a4 {[%emt 0:09:30]} ({Don't play} 39... Kxe5 40. Kc3 $17) 40. Rh5 {[%emt 0:02:30]} Nf4 {[%emt 0:00:30][%csl LRg2,LRh5]} 41. Rg5 {[%emt 0:02:09]} Kd4 {[%emt 0:08:30]} 42. g3 {[%emt 0:00:54]} Ne6 {[%emt 0:00:30]} 43. Rh5 {[%emt 0:00:30]} Nc5 {[%emt 0:00:30] ...Ne4+ would now be deadly.} 44. Kc2 {[%emt 0:01:52]} (44. g4 $1 $11) 44... Bd3+ {[%emt 0:01:30]} 45. Kb2 {[%emt 0:00:20][%cal Oe5e6]} Bg6 {[%emt 0:00:30]} (45... Be2 $1 $15 46. Rh8 Bf3 (46... Kxe5 47. Kc3 $17)) 46. Rh4+ {[%emt 0:00:48] The position is equal.} Be4 {[%emt 0:00:30]} 47. g4 {[%emt 0:00:44]} Nd3+ {[%emt 0:00:30]} 48. Ka1 {[%emt 0:00:30] Threatens to win with e6.} Nxe5 {[%emt 0:00:30]} 49. g5 $1 {[%emt 0:04:42]} Ng6 {[%emt 0:08:30]} 50. Rh3 {[%emt 0:01:30]} Bf5 {[%emt 0:00:30]} 51. Rg3 {[%emt 0:00:51]} Ne5 {[%emt 0:00:30]} 52. Kb2 {[%emt 0:00:54]} Bg6 {[%emt 0:01:30]} 53. Rg1 $1 {[%emt 0:01:35]} Nc4+ {[%emt 0:01:30]} 54. Ka2 {[%emt 0:00:03]} Ke5 {[%emt 0:00:30]} 55. Rf1 {[%emt 0:01:47]} Bf5 {[%emt 0:07:28]} 56. Rg1 {[%emt 0:01:35]} Bg6 {[%emt 0:01:33]} 57. Rf1 {[%emt 0:00:01]} Bc2 {[%emt 0:02:50]} 58. Rf8 {[%emt 0:02:17]} Ke6 {[%emt 0:01:55]} 59. Rf3 {[%emt 0:01:40]} Ke7 {[%emt 0:03:22]} 60. Ka1 $1 {[%emt 0:01:10]} Be4 {[%emt 0:02:14]} 61. Rf4 {[%emt 0:00:12]} Bh7 {[%emt 0:01:18]} 62. Ka2 {[%emt 0:00:38]} Bg8 {[%emt 0:00:49]} 63. Rf2 {[%emt 0:00:59]} Be6 {[%emt 0:00:18]} 64. Rf4 {[%emt 0:01:31]} Bf7 {[%emt 0:00:03]} 65. Rf2 {[%emt 0:00:00]} Bd5 {[%emt 0:01:12]} 66. Rf4 {[%emt 0:00:27]} Ke6 {[%emt 0:00:09]} 67. Rf8 {[%emt 0:00:23]} Ke7 {[%emt 0:00:30]} 68. Rf4 {[%emt 0:00:16]} Bg8 {[%emt 0:01:12]} 69. Rf2 {[%emt 0:00:08]} Nd6+ {[%emt 0:00:59]} 70. Kb2 {[%emt 0:00:46]} Bh7 {[%emt 0:00:30]} 71. Rh2 {[%emt 0:00:30]} Bf5 {[%emt 0:00:30]} 72. Kc3 {[%emt 0:00:30]} Nf7 {[%emt 0:03:28]} 73. Kb4 {[%emt 0:01:20]} Bd3 {[%emt 0:00:35]} (73... Nxg5 {simplifies} 74. Kxb5 Bd7+ 75. Kb4 Be8) 74. Rh3 {[%emt 0:01:16]} Bc4 {[%emt 0:00:32]} (74... Nxg5 75. Rxd3 Kf6 76. Kxb5 $18) 75. g6 {[%emt 0:00:59]} Ne5 {[%emt 0:00:14]} 76. Re3 {[%emt 0:00:30]} (76. Rh4 {simplifies} Nxg6 77. Rxc4 bxc4 78. Kxc4 Nf4 79. Kb4) 76... Kf6 {[%emt 0:00:31]} 77. g7 {[%emt 0:00:11]} Nc6+ {[%emt 0:00:10]} 78. Kc5 {[%emt 0:00:11]} Ne7 {[%emt 0:00:00]} 79. Re4 {[%emt 0:00:49]} Ng8 {[%emt 0:01:16]} 80. Rxc4 {[%emt 0:00:18]} bxc4 {[%emt 0:00:00] Weighted Error Value: White=0.09 (flawless) /Black=0.09 (flawless) .  Mistake:       	White=4     	Black=3      Inaccurate:     	White=1     	Black=3      OK:         	White=35    	Black=19     Best:        	White=5     	---        Strong:       	White=4     	---} 1/2-1/2

[Event "10th Cesme Open-A 2024"]
[Site "Cesme"]
[Date "2024.06.29"]
[Round "8"]
[White "Schekachikhin, Maksim"]
[Black "Ebrahimi Herab, Hamidreza"]
[Result "1-0"]
[ECO "D85"]
[WhiteElo "2343"]
[BlackElo "2333"]
[Annotator "RC"]
[PlyCount "87"]
[EventDate "2024.06.23"]
[EventType "swiss"]
[EventCountry "TUR"]
[SourceTitle "playchess.com"]
[Source "ChessBase"]
[SourceQuality "1"]
[TimeControl "5400+30"]

1. d4 {[%emt 0:01:00]} Nf6 {[%emt 0:01:00]} 2. c4 {[%emt 0:00:30]} g6 {[%emt 0:00:30]} 3. Nc3 {[%emt 0:00:30]} d5 {[%emt 0:00:30]} 4. Nf3 {[%emt 0:00:30]} Bg7 {[%emt 0:00:30]} 5. cxd5 {[%emt 0:00:00]} Nxd5 {[%emt 0:00:30]} 6. e4 {[%emt 0:00:00]} Nxc3 {[%emt 0:00:30]} 7. bxc3 {[%emt 0:00:30]} c5 {[%emt 0:00:30]} 8. Bb5+ {[%emt 0:00:30]} Nc6 {[%emt 0:00:30]} 9. Rb1 {[%emt 0:00:30]} O-O {[%emt 0:02:30]} 10. d5 {[%emt 0:01:30]} Ne5 {[%emt 0:01:30]} 11. O-O {[%emt 0:00:30]} Nxf3+ {[%emt 0:14:30]} 12. Qxf3 {[%emt 0:01:30]} f5 {[%emt 0:00:30]} 13. Bc4 {[%emt 0:07:30]} fxe4 {[%emt 0:04:30]} 14. Qxe4 {[%emt 0:01:30]} Bf5 {[%emt 0:01:30]} 15. d6+ {[%emt 0:01:30]} Kh8 {[%emt 0:00:30]} 16. Qe3 {[%emt 0:03:30]} exd6 {[%emt 0:03:30]} 17. Rxb7 {[%emt 0:00:30]} Qh4 {[%emt 0:03:30]} 18. Bd5 {[%emt 0:06:30]} Rae8 {[%emt 0:06:30]} 19. Qd2 {[%emt 0:06:30]} Re7 {[%emt 0:11:30]} 20. g3 {[%emt 0:06:30]} Qf6 {[%emt 0:00:30]} 21. Rxe7 {[%emt 0:01:30]} Qxe7 {[%emt 0:00:30]} 22. Re1 {[%emt 0:00:00]} Qf6 {[%emt 0:01:30]} 23. c4 {[%emt 0:00:00]} Bh3 {[%emt 0:01:30]} 24. Qe2 {[%emt 0:12:30]} Bg4 {[%emt 0:06:30]} 25. Qc2 {[%emt 0:04:30]} Bf5 {[%emt 0:04:30]} 26. Qd2 {[%emt 0:09:30]} Bh3 {[%emt 0:09:30]} 27. Re2 {[%emt 0:07:30]} Rb8 {[%emt 0:12:47]} 28. Qe1 {[%emt 0:02:30]} Rb1 {[%emt 0:06:58]} 29. Re8+ {[%emt 0:00:30]} Bf8 {[%emt 0:00:30]} 30. Be4 {[%emt 0:06:34]} Rxc1 {[%emt 0:04:18]} 31. Qxc1 {[%emt 0:00:07]} Kg7 {[%emt 0:00:43]} 32. Bd5 {[%emt 0:00:04]} h6 {[%emt 0:01:10]} 33. Qb1 {[%emt 0:01:22]} h5 {[%emt 0:00:12]} 34. Rb8 {[%emt 0:02:03]} Kh7 {[%emt 0:00:30]} 35. Rb7+ {[%emt 0:00:30]} Bg7 {[%emt 0:00:04]} 36. Rxa7 {[%emt 0:00:26]} Qc3 {[%emt 0:00:11]} 37. Re7 {[%emt 0:01:02]} Kh6 {[%emt 0:01:28]} 38. Qe1 {[%emt 0:01:17]} Qb2 {[%emt 0:00:27]} 39. Re2 {[%emt 0:00:36]} Qa3 {[%emt 0:00:53]} 40. Qd2+ {[%emt 0:00:04]} Kh7 {[%emt 0:00:00]} 41. Re8 {[%emt 0:01:02]} Qa4 {[%emt 0:00:47]} 42. Ra8 {[%emt 0:00:40]} Bc3 {[%emt 0:00:02]} 43. Rxa4 {[%emt 0:01:01]} Bxd2 {[%emt 0:00:05]} 44. Ra7+ {[%emt 0:00:00]} 1-0